Cogmind - Beta 12 @@@ ROGUE MODE // 2023.03.14 @ 19:33:19 Player: Delta Epsilon Result: Self-destructed Performance ------------- Evolutions (3) 1500 Regions Visited (6) 1200 Robots Destroyed (119) 595 Value Destroyed (3124) 3124 Prototype IDs (16) 320 Alien Tech Used (0) 0 Bonus (-5603) -5603 TOTAL SCORE: 1136 Bonus ------- High Alert Combat Kills 15 Friendly Fire -5618 Cogmind --------- Core Integrity 228/700 Matter 300/300 Energy 100/100 System Corruption 3% Temperature Cool (0) Movement Core (50) Location -7/Factory Parts ------- > --- POWER (1) -------- (None) > --- PROPULSION (3) --- (None) > --- UTILITY (6) ------ (None) > --- WEAPON (3) ------- (None) > --- INVENTORY (5) ---- Mini Fusion Reactor Experimental Heat Sink Transport Network Coupler Authchip [Propulsion] Authchip [Propulsion] Peak State ------------ > --- POWER ------------ Mini Fusion Reactor > --- PROPULSION ------- Light Treads Cooled Gravmag System Cooled Gravmag System > --- UTILITY ---------- Scrap Engine Large Storage Unit > --- WEAPON ----------- Improved Assault Rifle Improved Assault Rifle > --- INVENTORY -------- Improved Ion Engine Experimental Heat Sink Advanced Energy Well Large Matter Pod Transport Network Coupler Makeshift Cloaking Device Hardened Light Armor Plating Centrium Light Armor Plating 01-MTF's Autohacker 01-MTF's Shockpuncher Improved Assault Rifle Improved Assault Rifle Rocket Launcher Rocket Launcher Plasma Cutter [Rating: 52] Favorites ----------- Power Improved Ion Engine Engine Improved Ion Engine Power Core Constructs Reactor Mini Fusion Reactor Propulsion Aluminum Leg Treads Light Treads Leg Aluminum Leg Hover Unit Cooled Gravmag System Flight Unit Improved Flight Unit Utility Large Storage Unit Device Cooling System Storage Large Storage Unit Protection Medium Armor Plating Weapon Light Assault Rifle Energy Gun 01-MTF's Shockpuncher Energy Cannon Advanced Beam Cannon Ballistic Gun Light Assault Rifle Ballistic Cannon Improved Light Cannon Launcher Rocket Launcher Special Weapon Plasma Cutter Impact Weapon Maul Build | -11 -10 -10 -9 -9 -9 -7 ------- Run | Jun Mat Min Mat Sto Rec Fac Slots Evolved 6 | . . . 2 . . 4 Power . | . . . . . . . Propulsion 1 | . . . 1 . . . Utility 4 | . . . 1 . . 3 Weapon 1 | . . . . . . 1 Parts Attached 112 | 6 16 7 35 36 4 8 Power 9 | 1 3 1 1 3 . . Engine 7 | 1 3 . 1 2 . . Core 1 | . . 1 . . . . Reactor 1 | . . . . 1 . . Propulsion 34 | 2 6 3 13 8 1 1 Treads 4 | . . . . 4 . . Leg 25 | 2 6 3 13 1 . . Wheel . | . . . . . . . Hover 4 | . . . . 2 1 1 Flight 1 | . . . . 1 . . Utility 16 | 1 1 . 5 8 1 . Device 5 | . . . 1 3 1 . Storage 3 | 1 1 . . 1 . . Processor . | . . . . . . . Hackware . | . . . . . . . Protection 8 | . . . 4 4 . . Artifact . | . . . . . . . Weapon 53 | 2 6 3 16 17 2 7 Energy Gun 3 | . . . . 2 1 . Energy Cannon 13 | . . . 3 9 . 1 Ballistic Gun 23 | 2 6 3 9 3 . . Ballistic Cannon 3 | . . . 2 1 . . Launcher 6 | . . . 2 1 . 3 Special Weapon 2 | . . . . 1 1 . Impact Weapon 3 | . . . . . . 3 Slashing Weapon . | . . . . . . . Piercing Weapon . | . . . . . . . Special Melee Weapon . | . . . . . . . Unidentified Prototypes 12 | . . . 1 11 . . Parts Lost 13 | . 1 4 . 2 . 6 Power 3 | . 1 1 . . . 1 Propulsion 4 | . . 1 . 1 . 2 Utility 2 | . . . . 1 . 1 Weapon 4 | . . 2 . . . 2 Highest Loss Streak 4 | . 1 3 . 1 . 4 To Critical Strikes 1 | . . . . . . 1 Average Slot Usage (%) 80 | . 84 82 82 98 62 43 Engine 7 | . 13 3 10 7 . . Core 1 | . . 8 . . 3 6 Reactor 1 | . . . . 3 1 . Treads 4 | . . . . 15 1 . Leg 18 | . 27 27 31 11 . . Hover 5 | . . . . 5 20 9 Device 5 | . . . . 10 11 7 Storage 11 | . 14 14 11 11 11 7 Protection 4 | . . . 6 10 . . Energy Cannon 4 | . . . 1 16 . 4 Ballistic Gun 13 | . 27 28 19 2 7 2 Naked Turns 1 | . . . . . . 1 Heaviest Build 45 | 10 32 27 45 45 41 39 Greatest Support 60 | 20 20 20 39 60 22 29 Greatest Overweight (x) 13 | . 3 2 13 3 1 7 Average Overweight (x) . | . . 1 . . 1 1 Largest Inventory Capacity 15 | 8 15 15 15 15 15 15 Average Capacity 13 | 7 9 15 15 15 15 14 Most Carried 15 | . 10 12 15 15 15 15 Average Carried 12 | . 5 11 14 14 13 14 Final Capacity 15 | 8 15 15 15 15 15 5 Final Carried 15 | . 9 12 12 15 15 5 Scrap Engine Consumption 28 | . . . . . 22 6 Constructs Created 4 | . . . . . 4 . Constructs Modified 4 | . . . . . 2 2 Class Distribution -------------------- 57% | Mutant 29% | Scavenger-Mutant 13% | Construct Dominant Class ---------------- Mutant | -10/Materials Scavenger-Mutant | -10/Mines Mutant | -9/Materials Mutant | -9/Storage Construct | -9/Recycling Mutant | -7/Factory Resources | -11 -10 -10 -9 -9 -9 -7 ----------- Run | Jun Mat Min Mat Sto Rec Fac Matter Collected 2625 | 195 268 197 916 746 140 163 Remotely . | . . . . . . . Salvage Created 4306 | . 455 359 1280 1469 258 485 Parts 294 | . 39 19 93 93 18 32 Haulers Intercepted 9 | . 2 . 4 3 . . Recyclers Shooed 3 | . 1 . 1 1 . . Parts Field Recycled . | . . . . . . . Retrieved Matter . | . . . . . . . Parts Self-Destructed . | . . . . . . . Prevented . | . . . . . . . Kills | -11 -10 -10 -9 -9 -9 -7 ------- Run | Jun Mat Min Mat Sto Rec Fac Combat Hostiles Destroyed 85 | . 12 11 21 21 4 16 Melee 1 | . . . . . . 1 Guns 49 | . 12 11 18 1 2 5 Cannons 20 | . . . . 16 2 2 AOE 13 | . . . 3 3 . 7 Classes Destroyed 14 | . 5 . 6 . 2 1 Worker 5 | . . . 2 2 . 1 Builder 2 | . . . 1 1 . . Hauler 9 | . 2 . 4 3 . . Recycler 5 | . . . 1 4 . . Operator 4 | . 1 . 1 1 . 1 Watcher 8 | . 1 . 5 1 . 1 Swarmer 28 | . 6 5 3 7 . 7 Grunt 36 | . 6 6 10 8 1 5 Brawler 2 | . . . 1 . 1 . Duelist 2 | . . . 1 . . 1 Protector 1 | . . . . . 1 . Sentry 13 | . . . 6 6 . 1 Hunter 2 | . . . . . 1 1 Programmer 1 | . . . . . . 1 Best Kill Streak 11 | . 3 6 11 5 2 6 Combat Bots Only 6 | . 3 6 6 4 2 5 Max Kills in Single Turn 3 | . 2 1 2 3 1 2 Gunslinging 1 | . 1 . . . . . Exploded 3 | . . . 2 3 . 2 Melee 1 | . . . . . . 1 Uniques/NPCs Destroyed 1 | . . . . 1 . . 01-MTF (-9/Storage) Combat | -11 -10 -10 -9 -9 -9 -7 -------- Run | Jun Mat Min Mat Sto Rec Fac Damage Taken 4215 | . 522 504 747 875 37 1530 Core 953 | . 161 88 123 109 . 472 Absorbed by Shields . | . . . . . . . Regen/Repaired (Parts) 90 | . . . . 58 32 . Core Remaining (%) 47 | 100 . . . . 42 . Volleys Fired 463 | . 61 32 96 216 19 39 Largest 3 | . 2 2 2 2 2 3 Hottest 136 | . 40 40 60 136 76 114 Shots Fired 728 | . 122 62 180 291 26 47 Gun 410 | . 122 62 167 18 13 28 Cannon 168 | . . . 9 148 . 11 Launcher 13 | . . . 4 1 . 8 Special 137 | . . . . 124 13 . Kinetic 428 | . 122 62 176 31 12 25 Thermal 283 | . . . . 259 13 11 Explosive 13 | . . . 4 1 . 8 Electromagnetic 4 | . . . . . 1 3 Robot Hit Streak 15 | . 7 11 10 11 15 6 Robot Miss Streak 7 | . 4 2 4 7 2 5 Penetration Max . | . . . . . . . Secondary Targets 6 | . 4 1 1 . . . Max Gunslinging Chain 1 | . 1 1 1 . . . Shots Hit Robots 444 | . 75 47 105 164 20 33 Core Hits 207 | . 34 24 51 55 9 34 Critical Kills 1 | . . . . 1 . . Critical Parts Destroyed 3 | . . . . . 1 2 Critical Strikes 8 | . . . . 5 1 2 Meltdown 1 | . . . . 1 . . Destroy 1 | . . . . . 1 . Smash 2 | . . . . . . 2 Sever 4 | . . . . 4 . . Melee Attacks 7 | . . . . . . 7 Impact 7 | . . . . . . 7 Slashing . | . . . . . . . Piercing . | . . . . . . . Sneak Attacks . | . . . . . . . Combat Hostiles . | . . . . . . . Follow-up Attacks . | . . . . . . . Damage Inflicted 7323 | . 616 402 2037 2369 263 1636 Guns 3387 | . 613 402 1668 163 141 400 Cannons 1712 | . . . . 1534 . 178 Explosions 1376 | . . . 351 155 . 870 Melee 188 | . . . . . . 188 Ramming 41 | . 3 . 18 20 . . Kinetic 3317 | . 613 402 1668 163 141 330 Thermal 2408 | . . . . 2031 122 255 Explosive 1299 | . . . 351 155 . 793 Electromagnetic 70 | . . . . . . 70 Impact 188 | . . . . . . 188 Slashing . | . . . . . . . Piercing . | . . . . . . . Highest Corruption 5 | . . . . 5 5 3 Average Corruption 4 | . . . . 4 5 1 Corruption Purged . | . . . . . . . Corruption Blocked . | . . . . . . . Effects 31 | . . . . 9 20 2 Message Errors 6 | . . . . 2 4 . Matter Fused 11 | . . . . 4 7 . Heat Flow Errors 5 | . . . . 1 2 2 Energy Discharges 5 | . . . . . 5 . Data Loss (minor) 3 | . . . . 2 1 . Misfires 1 | . . . . . 1 . Overload Shots . | . . . . . . . Overflow Damage 115 | . . . 24 17 . 74 Projectiles 28 | . . . . 17 . 11 Explosions 55 | . . . 24 . . 31 Melee 32 | . . . . . . 32 Knockbacks . | . . . . . . . Impact . | . . . . . . . Kinetic . | . . . . . . . Secondary . | . . . . . . . Self-Inflicted Damage 283 | . . . . 41 . 242 Shots 5 | . . . . 1 . 4 Rammed 1 | . . . . 1 . . Targets Rammed 5 | . 1 . 2 2 . . Kicked 4 | . 1 . 2 1 . . Crushed . | . . . . . . . Highest Temperature 375 | . 24 28 131 375 254 217 Average Temperature 50 | . 11 9 27 76 123 54 Received Heat Transfer 1356 | . 189 303 330 354 9 171 Effects 5 | . . . . 5 . . Shutdowns 1 | . . . . 1 . . Energy Bleed 1 | . . . . 1 . . Interference 2 | . . . . 2 . . Damage (minor) 1 | . . . . 1 . . Siege Activations . | . . . . . . . Robots Corrupted . | . . . . . . . Combat Hostiles . | . . . . . . . Parts Fried 4 | . . . . . . 4 Impact Corruptions 2 | . . . . . . 2 Robots Melted 1 | . . . . 1 . . Combat Hostiles 1 | . . . . 1 . . Parts Melted 7 | . . . . 6 1 . Heat Transferred 6451 | . . . . 5735 444 272 Parts Sabotaged . | . . . . . . . Parts Stolen . | . . . . . . . Parts Stripped . | . . . . . . . Power Chain Reactions 1 | . . . . . . 1 Missiles Intercepted . | . . . . . . . Alert | -11 -10 -10 -9 -9 -9 -7 ------- Run | Jun Mat Min Mat Sto Rec Fac Peak Influence 423 | . 170 240 387 391 152 423 Initial 152 | . . . 15 136 152 . Average 182 | . 86 114 215 284 34 279 Maximum Alert Level 2 | . . 1 1 1 . 2 Low Security (%) 55 | 100 100 98 41 17 100 21 Level 1 43 | . . 1 58 82 . 67 Level 2 . | . . . . . . 10 Level 3 . | . . . . . . . Level 4 . | . . . . . . . Level 5 . | . . . . . . . High Security . | . . . . . . . Max Security . | . . . . . . . Squads Dispatched 11 | . 2 . 1 1 . 7 Investigation 4 | . 1 . 1 1 . 1 Extermination 1 | . . . . . . 1 Reinforcement 3 | . 1 . . . . 2 Assault . | . . . . . . . Garrison 3 | . . . . . . 3 Intercept . | . . . . . . . Searches Triggered . | . . . . . . . Construction Impeded . | . . . . . . . Haulers Reinforced . | . . . . . . . Active Scanning Responses . | . . . . . . . Cargo Convoy Interrupts 1 | . . . . . . 1 Stealth | -11 -10 -10 -9 -9 -9 -7 --------- Run | Jun Mat Min Mat Sto Rec Fac Distress Signals 7 | . 1 . 3 3 . . Communications Jammed . | . . . . . . . Distress Signals . | . . . . . . . Times Spotted 131 | . 23 11 32 27 2 36 Peak Tracking Total 13 | . 6 5 4 5 1 13 Tactical Retreats 5 | . 1 . 1 2 . 1 Traps | -11 -10 -10 -9 -9 -9 -7 ------- Run | Jun Mat Min Mat Sto Rec Fac Traps Triggered 11 | . 4 . 4 3 . . Indirectly . | . . . . . . . Trap Hack Attempts . | . . . . . . . Triggered . | . . . . . . . Disarmed . | . . . . . . . Reprogrammed . | . . . . . . . Reused . | . . . . . . . Traps Extracted . | . . . . . . . Installed . | . . . . . . . Triggered . | . . . . . . . Machines | -11 -10 -10 -9 -9 -9 -7 ---------- Run | Jun Mat Min Mat Sto Rec Fac Machines Disabled 11 | . . . 4 4 . 3 Max in Single Turn 1 | . . . 1 1 . 1 Machines Repaired . | . . . . . . . Machines Sabotaged . | . . . . . . . Overloaded Fab Kills . | . . . . . . . Hacking | -11 -10 -10 -9 -9 -9 -7 --------- Run | Jun Mat Min Mat Sto Rec Fac Machines Accessed 25 | . 2 . 3 9 10 1 Terminals 13 | . . . 2 5 6 . Fabricators . | . . . . . . . Repair Stations 1 | . . . . 1 . . Recycling Units 9 | . 2 . 1 2 4 . Scanalyzers . | . . . . . . . Garrison Access 2 | . . . . 1 . 1 Total Hacks 59 | . 7 . 6 22 22 2 Successful 18 | . 2 . 3 6 7 . Failed 41 | . 5 . 3 16 15 2 Catastrophic 6 | . . . 1 3 2 . Database Lockouts . | . . . . . . . Manual 7 | . . . . 3 4 . Terminals 31 | . . . 4 11 16 . Fabricators . | . . . . . . . Repair Stations 2 | . . . . 2 . . Recycling Units 21 | . 7 . 2 6 6 . Scanalyzers . | . . . . . . . Garrison Access 5 | . . . . 3 . 2 Terminal Hacks 10 | . . . 3 4 3 . Prototype ID Bank 1 | . . . . . 1 . Open Door 3 | . . . . 3 . . Branch Access Points 1 | . . . . . 1 . Unreport Threat 1 | . . . . . 1 . Dispatch Records 1 | . . . 1 . . . Maintenance Status 1 | . . . 1 . . . Hauler Manifests 1 | . . . . 1 . . Zone Layout 1 | . . . 1 . . . Fabricator Hacks . | . . . . . . . Repair Station Hacks 2 | . . . . 2 . . Scan Component 1 | . . . . 1 . . Repair 1 | . . . . 1 . . Recycling Unit Hacks 6 | . 2 . . . 4 . Retrieve Components 6 | . 2 . . . 4 . Scanalyzer . | . . . . . . . Garrison Access Hacks . | . . . . . . . Unauthorized Hacks . | . . . . . . . Terminals . | . . . . . . . Fabricators . | . . . . . . . Repair Stations . | . . . . . . . Recycling Units . | . . . . . . . Scanalyzers . | . . . . . . . Garrison Access . | . . . . . . . Data Cores Recovered 1 | . . . 1 . . . Used . | . . . . . . . Hacking Detections 19 | . 2 . 3 7 6 1 Full Trace Events 4 | . . . 1 2 . 1 Feedback Events . | . . . . . . . Feedback Blocked . | . . . . . . . Robot Schematics Acquired . | . . . . . . . Robots Built . | . . . . . . . Authchips . | . . . . . . . Time . | . . . . . . . Total Robot Build Rating . | . . . . . . . Part Schematics Acquired . | . . . . . . . Parts Built . | . . . . . . . Authchips . | . . . . . . . Time . | . . . . . . . Total Part Build Rating . | . . . . . . . Parts Repaired 1 | . . . . 1 . . Time 32 | . . . . 32 . . Parts Recycled . | . . . . . . . Recycled Matter . | . . . . . . . Retrieved Matter . | . . . . . . . Retrieved Components 17 | . 6 . . . 11 . Parts Scanalyzed . | . . . . . . . Part Schematics Acquired . | . . . . . . . Parts Damaged . | . . . . . . . Bothacking | -11 -10 -10 -9 -9 -9 -7 ------------ Run | Jun Mat Min Mat Sto Rec Fac Used RIF Installer . | . . . . . . . Robots Hacked . | . . . . . . . Non-combat . | . . . . . . . Combat . | . . . . . . . Robot Hacks Applied . | . . . . . . . Relay Couplers Released . | . . . . . . . Fabnet Peak Effective % . | . . . . . . . Robots Rewired . | . . . . . . . Allies Hacked . | . . . . . . . Hacks Repelled . | . . . . . . . Allies | -11 -10 -10 -9 -9 -9 -7 -------- Run | Jun Mat Min Mat Sto Rec Fac Total Allies 1 | . . . . 1 . . Largest Group 1 | . . . . 1 . . Highest-Rated Group 100 | . . . . 100 . . Highest-Rated Ally 100 | . . . . 100 . . Total Orders . | . . . . . . . Ally Attacks . | . . . . . . . Total Damage . | . . . . . . . Kills . | . . . . . . . Allies Corrupted . | . . . . . . . Allies Melted . | . . . . . . . Intel | -11 -10 -10 -9 -9 -9 -7 ------- Run | Jun Mat Min Mat Sto Rec Fac Robot Analysis Total . | . . . . . . . Derelict Logs Recovered 2 | . . 2 . . . . Drone Launches . | . . . . . . . Drone Recoveries . | . . . . . . . Exploration | -11 -10 -10 -9 -9 -9 -7 ------------- Run | Jun Mat Min Mat Sto Rec Fac Turns Passed 7523 | 65 1233 484 2140 1911 1078 612 Spaces Moved 3749 | 52 797 197 1020 700 771 212 Core 13 | 8 1 . 1 . . 3 Treads 131 | . . . . 131 . . Legs 2344 | 44 796 197 1019 288 . . Wheels . | . . . . . . . Hover 1261 | . . . . 281 771 209 Flight . | . . . . . . . Fastest Speed 50 | 50 120 190 120 116 100 50 Average Speed 151 | 109 128 192 169 158 119 213 Slowest Speed 700 | 120 200 260 700 330 122 406 Overloaded Moves . | . . . . . . . Propulsion Burnouts . | . . . . . . . Robots Hopped . | . . . . . . . Cave-ins Triggered . | . . . . . . . Exploration Rate (%) 55 | 5 96 26 74 92 89 6 Regions Visited 6 Branch Regions 3 Pre-discovered Areas . | . . . . . . . Known Exits Taken . | . . . . . . . Unknown Exits Taken 6 | 1 1 1 1 1 1 . Scrap Searched . | . . . . . . . Spaces Dug 2 | . . . 1 1 . . Terrain Destroyed 99 | . . . 24 12 . 63 Melee . | . . . . . . . Projectile 5 | . . . 2 1 . 2 AOE 94 | . . . 22 11 . 61 Terrain Rammed . | . . . . . . . Walls Destroyed . | . . . . . . . Machines Disabled . | . . . . . . . Actions | -11 -10 -10 -9 -9 -9 -7 --------- Run | Jun Mat Min Mat Sto Rec Fac Total 4795 | 57 900 250 1287 1089 901 311 Wait 327 | . 20 13 89 86 80 39 Move 3743 | 51 796 196 1019 699 770 212 Hop . | . . . . . . . Pick Up 47 | . 4 2 18 15 8 . Fast Attach 56 | 6 9 3 16 19 1 2 Attach 13 | . . 1 5 . 2 5 Detach 15 | . 1 . 1 2 7 4 Swap 43 | . 7 3 14 17 1 1 Drop 76 | . 1 . 27 33 13 2 Fire 463 | . 61 32 96 216 19 39 Melee 7 | . . . . . . 7 Ram 1 | . . . . 1 . . Kick 4 | . 1 . 2 1 . . Crush . | . . . . . . . Escape Stasis . | . . . . . . . Rewire . | . . . . . . . Trap . | . . . . . . . Miscellaneous . | . . . . . . . Route ------- -11/Junkyard -10/Materials (discovered 5 exits: *Mat x3 / [*Min x2]) -10/Mines -9/Materials (discovered 3 exits: [*Mat] / [*Min] / *Sto) -9/Storage (discovered 2 exits: [*Mat] / *Rec) -9/Recycling -7/Factory History --------- Turn | Location | Event 5 | -11/Junkyard | Discovered new exit (range 15) 66 | -11/Junkyard | Entered Materials 191 | -10/Materials | Discovered new exit (range 15) 314 | -10/Materials | Build established: Mutant 732 | -10/Materials | Discovered new exit (range 10) 778 | -10/Materials | Discovered new exit (range 15) 872 | -10/Materials | Core integrity fell below 50% 1017 | -10/Materials | Discovered new exit (range 14) 1019 | -10/Materials | Build established: Scavenger-Mutant 1098 | -10/Materials | Discovered new exit (range 16) 1299 | -10/Materials | Entered Mines 1423 | -10/Mines | Core integrity fell below 20% 1482 | -10/Mines | Lost 3 parts (1p1n1w) 1641 | -10/Mines | Learned Materials security intel 1677 | -10/Mines | Found a hidden stash of uninstalled traps 1713 | -10/Mines | Learned Materials terminal intel 1755 | -10/Mines | Discovered new exit (range 15) 1783 | -10/Mines | Entered Materials 1783 | -9/Materials | Evolved 2 slots: Propulsion x1, Utility x1 1785 | -9/Materials | Loaded intel: 12 terminal locations 2561 | -9/Materials | Discovered new exit (range 14) 2569 | -9/Materials | Build established: Mutant 2849 | -9/Materials | Discovered new exit (range 7) 3043 | -9/Materials | Discovered new exit (range 10) 3923 | -9/Materials | Entered Storage 4841 | -9/Storage | Discovered new exit (range 8) 4903 | -9/Storage | Met 01-MTF 4941 | -9/Storage | Build established: Scavenger-Mutant 5306 | -9/Storage | Destroyed 01-MTF 5323 | -9/Storage | Found Prototype Device 5328 | -9/Storage | Identified 01-MTF's Autohacker 5331 | -9/Storage | Found 01-MTF's Shockpuncher 5546 | -9/Storage | Core integrity fell below 50% 5774 | -9/Storage | Repaired Med. Armor Plating 5830 | -9/Storage | Used back door to open Recycling access 5830 | -9/Storage | Discovered new exit (range 4) 5834 | -9/Storage | Entered Recycling 5837 | -9/Recycling | Found Scrap Engine 5863 | -9/Recycling | Build established: Mutant 6359 | -9/Recycling | Build established: Construct 6457 | -9/Recycling | Discovered new exit (range 15) 6912 | -9/Recycling | Entered Factory 6912 | -7/Factory | Evolved 4 slots: Utility x3, Weapon x1 7039 | -7/Factory | Garrison activated, responded to threat 7487 | -7/Factory | Build established: Mutant 7517 | -7/Factory | Cargo convoy interrupted 7517 | -7/Factory | Core integrity fell below 50% 7523 | -7/Factory | Released all parts (3) 7524 | -7/Factory | Self-destructed Last Messages --------------- 07517_ X-67 Chaingunner unfolds itself. 07517_ H-55 Commando unfolds itself. 07517_ I-36 Angel unfolds itself. 07517_ K-01 Serf collects debris. 07519_ Penetrated by Slug. 07520_ W-25 Informer suffers critical hit (Smash). 07520_ Destroyed Imp. Signal Interpreter. 07520_ W-25 Informer system corrupted by crushing effect. 07520_ M-28 Smith repairs P-60 Hacker. 07521_ W-25 Informer system terminally corrupted. 07521_ Imp. Hover Unit fried. 07521_ K-01 Serf collects debris. 07522_ Critical hit (Destroy). 07522_ Arm. Scrap Engine destroyed. 07522_ Scrap Engine core remains intact and functional. 07523_ Released Maul. 07523_ Released Lrg. Storage Unit. 07523_ Released Scrap Engine. 07523_ Acquired 53 matter. 07523_ Acquired 17 matter. Map ----- +----------------------------------------------------+ | #???????????### #####+##???????????????????????? | | #???????????# ???????????????????????? | | #???????????# ???????????????????????? | | #???????????# ?????????????????????????? | | #???????????+ ??????????????????????????? | | #???????????# ???????????????????????????? | | #???????????# #????????????????????????????? | | ############# #????????????????????????????? | | #????????????????????????????? | | * #????????????????????????????? | | =%% #????????????????????????????? | | * #????????????????????????????? | | = [ #????????????????????????????? | | ################+#######?????????????????????????? | | ???## # # #?????????????????????????? | | ????## ### #?????????????????????????? | | ?????####?# #?????????????????????????? | | ??????????# #?????????????????????????? | | ??????????# #?????????????????????????? | | ??????????# ######## #????????????????? | | ??????????# ! + #?????????????? | | ??????????# ########?????????????????? | | ??????????# ! ?????????????????????????? | | ??????????# !=/#?????????????????????????? | | ??????????# x|xxm######### #???????????? | | ??????????# !k[hp @!!! +???????????? | | ??????????##########/########### #???????????? | | ???????????????????# ????????????????????????????? | | ???????????????????# ????????????????????????????? | | ???????????????????#?????????????????????????????? | | ?????????????????????????????????????????????????? | | ?????????????????????????????????????????????????? | | ?????????????????????????????????????????????????? | | ?????????????????????????????????????????????????? | | ?????????????????????????????????????????????????? | | ?????????????????????????????????????????????????? | | ?????????????????????????????????????????????????? | | ?????????????????????????????????????????????????? | | ?????????????????????????????????????????????????? | | ?????????????????????????????????????????????????? | | ?????????????????????????????????????????????????? | | ?????????????????????????????????????????????????? | | ?????????????????????????????????????????????????? | | ?????????????????????????????????????????????????? | | ?????????????????????????????????????????????????? | | ?????????????????????????????????????????????????? | | ?????????????????????????????????????????????????? | | ?????????????????????????????????????????????????? | | ?????????????????????????????????????????????????? | | ?????????????????????????????????????????????????? | +----------------------------------------------------+ Best States ------------- Heat Dissipation 54 Energy Generation 21 Energy Capacity 670 Matter Stores 300 Matter Capacity 300 Sight Range 16 Terrain Scan Density 10 Armor Coverage 225 Evasion (%) 55 Recoil Reduction 3 Authchip Count 4 Item Schematics ----------------- None Robot Schematics ------------------ None Fabricated ------------ Nothing Alien Tech Used ----------------- None Achievements -------------- None Challenges ------------ None Game ------ Seed CombatCouplerCasing Manual? 0 Play Time 00:47:18 Cumulative 137.8 hours Start 2023.03.14 @ 18:32:41 End 2023.03.14 @ 19:33:19 Sessions 1 Manual Loads 0 Difficulty Rogue Special Mode None Game No. 91 Rogue 91 Adventurer 0 Explorer 0 Win Type - Total 1 Types 0/0/1/0/0/0/0/0/0 Lore% 54 Gallery% 68 Achievement% 55 Wizard Run 0 Options --------- ASCII 1 Keyboard 1 Movement Numpad Keybinds 0 Fullscreen 0 Font 16/Terminus Map View 76x50 Tactical HUD 1 Map Filters NONE Filters NONE Steam 1 RUN: 5a82e8c2-b065-4d4d-898b-12d64babb8e1